bitfinex/quotes_ETHUSD_20250428
["timestamp","ask_amount","ask_price","bid_price","bid_amount"]
[1745808631423,0.31659309,1776.1,1776.0,0.24801075]
[1745808631602,0.31659309,1776.1,1776.0,0.64689855]
[1745808632432,0.31659309,1776.1,1776.0,0.24801075]
[1745808633149,0.31659309,1776.1,1776.0,1.00281075]
[1745808633436,0.31659309,1776.3,1776.0,1.00281075]
[1745808634015,4.1821726,1776.6,1776.0,1.00281075]
[1745808634537,4.60619742,1776.6,1776.0,1.00281075]
[1745808634737,0.31644476,1776.5,1776.0,1.00281075]
[1745808635424,0.31644476,1776.5,1776.0,4.74367799]
[1745808635739,0.31644476,1776.4,1776.1,0.4743678]
[1745808636108,0.31644476,1776.4,1776.2,0.22902048]
[1745808637027,0.31644476,1776.3,1776.2,0.22902048]
[1745808639948,1.11194476,1776.3,1776.2,0.22902048]
[1745808640248,1.11194476,1776.3,1776.0,3.74086724]
[1745808640414,1.11194476,1776.3,1776.2,0.22902048]
[1745808640741,1.11194476,1776.3,1776.0,3.74086724]
[1745808640943,1.11194476,1776.3,1776.2,0.22902048]
[1745808641144,1.11194476,1776.3,1776.0,3.74086724]
[1745808641747,1.11194476,1776.3,1776.1,0.22902048]
[1745808641944,0.31644476,1776.2,1776.1,0.22902048]
[1745808642732,1.4398575,1776.3,1776.1,0.22902048]
[1745808642938,0.31630931,1776.2,1776.1,0.22902048]
[1745808643845,0.31630931,1776.2,1775.9,3.74086724]
[1745808644049,0.31630931,1776.2,1776.1,0.22902048]
[1745808644373,0.31630931,1776.2,1776.0,0.7903]
[1745808644508,0.31630931,1776.2,1776.1,0.22902048]
[1745808645943,0.31630931,1776.2,1775.9,1.83973384]
[1745808646438,0.31630931,1776.1,1776.0,0.22902048]
[1745808651284,0.31630931,1776.1,1776.0,0.98772048]
[1745808651446,0.31630931,1776.5,1776.1,0.8117]
[1745808651880,0.31630931,1776.5,1776.3,0.8232]
[1745808652474,0.4052726,1776.6,1776.5,0.8232]
[1745808652981,0.4052726,1776.6,1776.5,1.05145263]
[1745808662278,0.4052726,1776.6,1776.5,1.69581013]
[1745808663487,0.4052726,1776.6,1776.5,4.69581013]
[1745808663678,0.4052726,1776.6,1776.5,5.16539114]
[1745808665787,0.4052726,1776.6,1776.5,4.52103364]
[1745808665994,0.4052726,1776.6,1776.5,5.16539114]
[1745808667161,0.4052726,1776.6,1776.5,8.90625838]
[1745808668777,0.4052726,1776.6,1776.5,8.26190088]
[1745808669292,0.4052726,1776.6,1776.5,5.26190088]
[1745808670588,0.00624876,1776.8,1776.5,5.26190088]
[1745808670792,0.00624876,1776.8,1776.6,0.52619009]
[1745808671291,0.00624876,1776.8,1776.7,0.21748834]
[1745808671491,0.00624876,1776.8,1776.6,0.52619009]
[1745808671692,0.00624876,1776.8,1776.7,0.21748834]
[1745808671899,0.00624876,1776.8,1776.6,0.52619009]
[1745808672094,0.00624876,1776.8,1776.7,0.21748834]
[1745808672271,0.00624876,1776.8,1776.6,0.52619009]
[1745808672471,0.00624876,1776.8,1776.7,0.21748834]
[1745808672667,0.00624876,1776.8,1776.5,0.8232]
[1745808672883,0.00624876,1776.8,1776.7,0.21748834]
[1745808673072,0.00624876,1776.8,1776.6,4.921]
[1745808673392,0.00624876,1776.8,1776.7,0.21748834]
[1745808673798,0.00624876,1776.8,1776.7,0.51384883]
[1745808673981,0.00624876,1776.8,1776.7,0.73133717]
[1745808675659,0.00624876,1776.8,1776.7,0.21748834]
[1745808675978,0.76114876,1776.8,1776.6,4.921]
[1745808676182,0.76114876,1776.8,1776.7,0.21748834]
[1745808676583,0.76114876,1776.8,1776.6,4.921]
[1745808676770,0.76114876,1776.8,1776.7,0.21748834]
[1745808677094,0.76114876,1776.8,1776.6,4.921]
[1745808677275,0.76114876,1776.8,1776.7,0.21748834]
[1745808677474,0.76114876,1776.8,1776.4,4.921]
[1745808677876,0.8242,1776.7,1776.5,0.21748834]
[1745808678478,1.1390617,1776.7,1776.5,0.21748834]
[1745808679272,1.1390617,1776.7,1776.5,0.73133717]
[1745808679471,0.8242,1776.7,1776.5,0.73133717]
[1745808679676,1.1109617,1776.9,1776.5,0.73133717]
[1745808680990,0.7961,1777.1,1776.6,0.7952]
[1745808681391,0.7961,1777.1,1776.7,0.22068704]
[1745808681772,0.7961,1777.1,1776.6,0.7952]
[1745808681988,0.31602129,1777.0,1776.8,0.22068704]
[1745808682190,0.31602129,1777.0,1776.6,0.7952]
[1745808682392,0.31602129,1777.0,1776.9,0.22068704]
[1745808682892,0.31602129,1777.0,1776.6,0.7952]
[1745808683212,0.31602129,1777.0,1776.9,0.22068704]
[1745808683414,0.31602129,1777.0,1776.6,0.7952]
[1745808683596,0.31602129,1777.0,1776.9,0.2191058]
[1745808683791,0.31602129,1777.0,1776.6,0.7952]
[1745808683992,0.7961,1777.1,1776.9,0.2191058]
[1745808684214,0.7961,1777.1,1776.6,0.7952]
[1745808684515,0.7961,1777.1,1776.5,4.33284883]
[1745808684516,1.4404575,1777.1,1776.5,4.33284883]
[1745808684721,1.4404575,1777.1,1776.7,0.2191058]
[1745808685021,1.4404575,1777.1,1776.5,1.33284883]
[1745808685022,0.7961,1777.1,1776.5,1.33284883]
[1745808685216,0.7961,1777.1,1776.8,0.2191058]
[1745808685388,0.7961,1777.1,1776.5,1.33284883]
[1745808685583,0.7961,1777.1,1776.9,0.2191058]
[1745808685796,0.31608902,1777.0,1776.5,1.33284883]
[1745808686801,0.7961,1777.1,1776.5,1.33284883]
[1745808687543,0.7961,1777.1,1776.5,1.97720633]
[1745808688209,0.31613853,1777.0,1776.5,4.58352962]
[1745808688403,0.31613853,1777.0,1776.7,0.8176]
[1745808688619,0.31613853,1777.0,1776.8,4.917]
[1745808689323,0.31613853,1777.2,1776.8,4.917]
[1745808689624,0.31613853,1777.2,1776.9,0.7692]
[1745808690625,0.31613853,1777.2,1776.8,4.917]
[1745808690926,0.31613853,1777.2,1776.8,5.48562]
[1745808691231,1.09863853,1777.1,1776.8,4.917]
[1745808691948,0.31613853,1777.0,1776.8,4.917]
[1745808692304,0.31613853,1777.0,1776.9,0.2176811]
[1745808693217,1.12463853,1777.0,1776.9,0.2176811]
[1745808694543,1.76899603,1777.0,1776.9,0.2176811]
[1745808694915,0.96049603,1777.0,1776.5,8.65786724]
[1745808695238,1.12463853,1776.9,1776.5,8.65786724]
[1745808695643,1.12463853,1776.9,1776.5,9.52365396]
[1745808696143,1.12463853,1776.9,1776.5,5.78278672]
[1745808696144,0.31613853,1776.8,1776.5,5.78278672]
[1745808697038,0.8085,1776.9,1776.5,5.78278672]
[1745808697443,0.8085,1776.9,1776.5,6.54108672]
[1745808697639,0.8085,1776.9,1776.6,0.65410867]
[1745808701248,0.31620547,1776.8,1776.6,0.65410867]
[1745808701649,0.31620547,1776.8,1776.6,1.47530867]
[1745808702048,0.31620547,1777.0,1776.6,1.47530867]
[1745808703353,0.31620547,1776.9,1776.6,1.47530867]
[1745808704253,0.31620547,1777.0,1776.6,4.39497591]
[1745808704927,1.09480547,1776.9,1776.6,3.74086724]
[1745808706227,0.31620547,1776.8,1776.6,3.74086724]
[1745808706950,0.7786,1776.9,1776.6,3.74086724]
[1745808707548,0.6443575,1776.8,1776.7,0.20001801]
[1745808707748,0.7707,1776.7,1776.5,8.65786724]
[1745808708259,0.7707,1776.7,1776.5,9.52365396]
[1745808708549,0.7707,1776.7,1776.5,8.65786724]
[1745808709455,0.7707,1776.7,1776.5,4.917]
[1745808709923,0.31630549,1776.6,1776.5,4.917]
[1745808713842,0.31630549,1776.6,1776.3,3.74086724]
[1745808714154,0.31630549,1776.6,1776.3,4.53646724]
[1745808714359,0.31630549,1776.7,1776.4,0.45364672]
[1745808715320,0.8207,1776.8,1776.4,0.45364672]
[1745808715964,0.8207,1776.8,1776.3,4.53646724]
[1745808716163,0.8207,1776.8,1776.3,3.74086724]
[1745808717956,0.31606245,1776.7,1776.3,3.74086724]
[1745808718774,0.31606245,1776.6,1776.3,3.74086724]
[1745808719537,0.8207,1776.8,1776.3,3.74086724]
[1745808720164,0.31615545,1776.7,1776.3,3.74086724]
[1745808720465,0.31615545,1776.7,1776.3,4.68631396]
[1745808721070,0.31615545,1776.6,1776.3,4.68631396]
[1745808721571,0.8207,1776.8,1776.3,4.68631396]
[1745808722074,0.7912,1777.0,1776.4,0.7559]
[1745808722277,0.7912,1777.0,1776.4,0.95993105]
[1745808722641,0.31632869,1776.9,1776.4,0.95993105]
[1745808722836,0.31632869,1776.9,1776.5,0.6443575]
[1745808723290,0.31632869,1776.9,1776.7,0.7747]
[1745808723791,0.31632869,1776.8,1776.7,0.7747]
[1745808724592,0.31632869,1776.8,1776.5,1.4714575]
[1745808724761,0.7912,1777.0,1776.5,1.4714575]
[1745808724762,0.31632869,1776.9,1776.5,0.8271]
[1745808725689,0.31632869,1776.9,1776.5,1.4714575]
[1745808725997,0.7912,1777.0,1776.5,1.4714575]
[1745808726196,0.7912,1777.0,1776.6,4.915]
[1745808726397,0.7912,1777.0,1776.7,0.4915]
[1745808727008,0.7912,1777.0,1776.6,4.915]
[1745808727288,0.7671,1776.9,1776.6,4.915]
[1745808727486,0.7671,1776.7,1776.6,4.915]
[1745808727675,0.7671,1776.7,1776.5,3.74086724]
[1745808728390,0.31632506,1776.6,1776.5,3.74086724]
[1745808731502,0.31632506,1776.6,1776.3,4.915]
[1745808731669,0.31632506,1776.6,1776.3,5.78058672]
[1745808732701,0.31632506,1776.5,1776.3,5.78058672]
[1745808733188,0.31632506,1776.5,1776.3,4.915]
[1745808733683,1.13192506,1776.4,1776.3,4.915]
[1745808733890,1.13192506,1776.4,1776.2,3.74086724]
[1745808734600,0.31632506,1776.3,1776.2,3.74086724]
[1745808736991,0.31632506,1776.3,1776.2,4.11495396]
[1745808737191,0.31632506,1776.3,1776.2,4.90785396]
[1745808737391,0.31632506,1776.3,1776.2,5.11430564]
[1745808737570,0.31632506,1776.6,1776.2,5.11430564]
[1745808738093,0.31632506,1776.6,1776.2,1.3734384]
[1745808738402,0.31632506,1776.6,1776.2,0.99935168]
[1745808739981,0.8156,1776.7,1776.2,0.99935168]
[1745808740492,0.8156,1776.7,1776.2,4.74021892]
[1745808740903,0.8122,1776.5,1776.2,3.94731892]
[1745808741415,0.31610623,1776.4,1776.2,3.94731892]
[1745808742190,0.8122,1776.5,1776.2,3.94731892]
[1745808742191,0.31610623,1776.3,1776.2,3.94731892]
[1745808742506,0.31610623,1776.3,1776.2,4.34205081]
[1745808742873,0.31610623,1776.3,1776.2,3.94731892]
[1745808743087,0.31610623,1776.5,1776.2,0.20645168]
[1745808743370,0.31610623,1776.5,1776.0,22.5876]
[1745808743592,0.31610623,1776.5,1776.3,0.18815336]
[1745808743872,0.31610623,1776.5,1776.0,22.5876]
[1745808744203,0.7992,1776.6,1776.0,22.5876]
[1745808744403,0.7992,1776.6,1776.1,0.18815336]
[1745808744903,0.31604413,1776.5,1776.1,0.18815336]
[1745808746108,0.31604413,1776.4,1776.1,0.18815336]
[1745808747306,0.31604413,1776.5,1776.1,0.18815336]
[1745808748106,0.31604413,1776.4,1776.1,0.18815336]
[1745808748878,0.31604413,1776.5,1776.1,0.18815336]
[1745808749618,1.4148575,1776.4,1776.1,0.18815336]
[1745808749791,1.73090163,1776.4,1776.1,0.18815336]
[1745808750702,0.31604413,1776.3,1776.1,0.18815336]
[1745808751200,0.6443575,1776.2,1776.1,0.18815336]
[1745808751379,1.73120163,1776.2,1776.1,0.18815336]
[1745808756016,1.08684413,1776.2,1776.1,0.18815336]
[1745808756186,0.31604413,1776.2,1776.1,0.18815336]
[1745808756582,0.31604413,1776.3,1776.1,0.18815336]
[1745808757209,0.31604413,1776.2,1776.1,0.18815336]
[1745808758786,1.72200163,1776.2,1776.1,0.18815336]
[1745808758984,1.72200163,1776.2,1775.7,8.65386724]
[1745808759186,0.6443575,1776.0,1775.7,8.65386724]
[1745808760111,0.31604413,1775.9,1775.7,8.65386724]
[1745808762041,0.31604413,1775.8,1775.7,4.913]
[1745808762242,0.31604413,1775.8,1775.5,17.7325]
[1745808762809,0.6443575,1776.0,1775.5,17.7325]
[1745808762810,0.31604413,1775.9,1775.5,17.7325]
[1745808764589,0.7539,1775.8,1775.4,4.913]
[1745808764747,1.3982575,1775.8,1775.4,4.913]
[1745808764932,0.7539,1775.8,1775.4,4.913]
[1745808765335,0.96040163,1775.9,1775.5,0.7919]
[1745808765336,0.31604413,1775.9,1775.5,0.7919]
[1745808765511,0.7622,1776.2,1775.5,0.7919]
[1745808765813,1.43678789,1776.2,1775.5,0.7919]
[1745808766516,0.31582824,1776.1,1775.5,0.7919]
[1745808767141,0.31582824,1776.1,1775.6,0.16338962]
[1745808768245,0.31582824,1776.0,1775.6,0.16338962]
[1745808769031,0.31582824,1776.1,1775.6,0.16338962]
[1745808769267,0.96018574,1776.1,1775.6,0.16338962]
[1745808769838,0.31582824,1776.0,1775.6,0.16338962]
[1745808770458,0.31582824,1776.0,1775.7,0.8048]
[1745808770641,0.31582824,1776.0,1775.7,0.96771849]
[1745808770817,0.31582824,1776.1,1775.7,0.96771849]
[1745808771824,0.7622,1776.2,1775.7,0.96771849]
[1745808772955,0.31582824,1776.1,1775.7,0.96771849]
[1745808775157,0.7622,1776.2,1775.7,0.96771849]
[1745808777066,0.31625199,1776.1,1775.7,0.96771849]
[1745808777762,0.31625199,1776.0,1775.7,0.96771849]
[1745808778568,0.31625199,1776.1,1775.7,0.96771849]
[1745808779600,0.31625199,1776.0,1775.7,0.96771849]
[1745808779774,0.31625199,1776.0,1775.7,5.87871849]
[1745808780971,1.4065575,1776.2,1775.8,0.58787185]
[1745808781271,1.4065575,1776.2,1775.9,0.16123486]
[1745808781433,1.4065575,1776.2,1775.7,5.7158]
[1745808781634,0.31649193,1776.1,1776.0,0.16123486]
[1745808781845,0.31649193,1776.1,1775.7,5.7158]
[1745808782069,0.31649193,1776.1,1776.0,0.16123486]
[1745808782280,0.31649193,1776.1,1775.7,5.7158]
[1745808782576,0.31649193,1776.1,1775.8,0.57158]
[1745808782757,0.31649193,1776.0,1775.9,0.16123486]
[1745808783138,0.31649193,1776.0,1775.7,5.7158]
[1745808783364,0.31649193,1776.0,1775.8,0.16123486]
[1745808783752,1.4065575,1776.2,1775.8,0.16123486]
[1745808784450,0.31651088,1776.1,1775.8,0.16123486]
[1745808784652,0.31651088,1776.1,1775.8,0.74893835]
[1745808785174,0.31651088,1776.0,1775.8,0.74893835]
[1745808785676,1.4065575,1776.2,1775.8,0.74893835]
[1745808786775,0.31653065,1776.1,1775.8,0.74893835]
[1745808787681,0.31653065,1776.0,1775.8,0.74893835]
[1745808788546,1.4065575,1776.2,1775.8,0.74893835]
[1745808788983,0.7622,1776.2,1775.8,0.74893835]
[1745808789183,0.31657343,1776.1,1775.8,0.74893835]
[1745808789770,0.31657343,1776.0,1775.8,0.74893835]
[1745808790649,0.7622,1776.2,1775.8,0.74893835]
[1745808791980,0.31666926,1776.1,1775.8,0.74893835]
[1745808792182,0.6443575,1775.9,1775.8,0.16123486]
[1745808792976,0.96102676,1775.9,1775.8,0.16123486]
[1745808796188,0.96102676,1775.9,1775.5,4.55376724]
[1745808796375,0.31666926,1775.8,1775.6,0.16058711]
[1745808796980,0.8108,1775.7,1775.6,0.16058711]
[1745808797360,1.12746926,1775.7,1775.6,0.16058711]
[1745808797691,1.77182676,1775.7,1775.6,0.16058711]
[1745808799389,1.77182676,1775.7,1775.4,8.65186724]
[1745808799566,1.77182676,1775.7,1775.5,0.16200036]
[1745808799977,0.31666926,1775.6,1775.5,0.16200036]
[1745808803672,1.14626926,1775.6,1775.5,0.16200036]
[1745808804009,0.8296,1775.5,1775.3,3.74086724]
[1745808804381,0.31666926,1775.4,1775.3,3.74086724]
[1745808805272,0.31666926,1775.6,1775.3,3.74086724]
[1745808806169,0.31666926,1775.6,1775.2,3.74086724]
[1745808806468,0.31666926,1775.5,1775.2,3.74086724]
[1745808807601,1.4039575,1775.5,1775.2,3.74086724]
[1745808808297,0.31666926,1775.4,1775.2,3.74086724]
[1745808808508,1.4599575,1775.3,1775.2,3.74086724]
[1745808809172,1.77662676,1775.3,1775.2,3.74086724]
[1745808809709,0.31666926,1775.3,1775.0,3.74086724]
[1745808810069,1.07246926,1775.4,1775.0,3.74086724]
[1745808811803,1.07246926,1775.4,1774.8,9.43906724]
[1745808811968,1.07246926,1775.4,1775.0,0.796]
[1745808812171,1.07246926,1775.4,1775.1,0.15492084]
[1745808813507,0.31666926,1775.4,1775.1,0.15492084]
[1745808813707,0.31666926,1775.4,1775.2,0.8127]
[1745808814018,6.79636249,1775.6,1775.2,0.8127]
[1745808814305,0.6443575,1775.7,1775.3,0.15492084]
[1745808814503,1.3948575,1775.8,1775.3,0.15492084]
[1745808814703,0.31572785,1775.7,1775.3,0.15492084]
[1745808814914,0.31572785,1775.7,1775.3,0.74258292]
[1745808815090,0.31572785,1775.7,1775.4,0.7983]
[1745808815502,0.31572785,1775.7,1775.5,0.15474406]
[1745808816509,4.4336575,1776.0,1775.5,0.15474406]
[1745808816818,1.86724952,1776.0,1775.4,0.7983]
[1745808817188,1.86724952,1776.0,1775.5,0.15380137]
[1745808817389,0.31587482,1775.9,1775.5,0.15380137]
[1745808818809,0.31587482,1775.9,1775.6,0.7953]
[1745808818981,0.31587482,1775.9,1775.7,0.15262324]
[1745808819181,1.07794952,1776.0,1775.6,0.7953]
[1745808819390,1.07794952,1776.0,1775.7,0.15262324]
[1745808819717,1.07794952,1776.0,1775.6,0.7953]
[1745808820313,1.56467447,1776.0,1775.7,0.15262324]
[1745808820809,0.31604509,1775.9,1775.8,0.15262324]
[1745808821000,0.31604509,1775.9,1775.6,0.7953]
[1745808821173,0.31604509,1775.9,1775.7,0.15262324]
[1745808821378,0.31604509,1775.9,1775.6,0.7953]
[1745808821608,0.31604509,1775.9,1775.7,0.15262324]
[1745808821812,0.31604509,1775.8,1775.6,0.7953]
[1745808822815,0.6443575,1775.8,1775.4,0.8176]
[1745808823613,0.31620033,1775.7,1775.4,0.8176]
[1745808823819,0.31620033,1775.7,1775.4,1.27344672]
[1745808824180,0.31620033,1775.6,1775.4,1.27344672]
[1745808824380,0.31620033,1775.6,1775.4,0.8176]
[1745808824813,0.31620033,1775.9,1775.4,0.8176]
[1745808825020,1.4473575,1775.8,1775.4,0.8176]
[1745808825719,0.31620033,1775.7,1775.4,0.8176]
[1745808827224,0.31620033,1775.7,1775.5,0.15185736]
[1745808829201,1.4473575,1775.8,1775.5,0.15185736]
[1745808830929,1.25139202,1776.0,1775.5,0.15185736]
[1745808831100,0.8178,1776.2,1775.6,0.7738]
[1745808831424,0.31621698,1776.1,1775.7,0.92506833]
[1745808832100,1.42200626,1776.6,1775.8,0.779]
[1745808832420,1.42200626,1776.6,1775.9,0.92897269]
[1745808832731,0.00624876,1776.6,1776.0,4.908]
[1745808833027,0.00624876,1776.6,1776.1,1.2891]
[1745808833187,0.00624876,1776.6,1776.1,1.43907269]
[1745808834311,0.6443575,1776.4,1776.1,0.94827269]
[1745808841533,0.32145914,1776.6,1776.1,0.94827269]
[1745808841906,0.96581664,1776.6,1776.1,0.94827269]
[1745808843545,0.6443575,1776.4,1776.1,0.94827269]
[1745808843705,3.96581664,1776.6,1776.1,0.94827269]
[1745808844048,0.39658166,1776.5,1776.1,0.94827269]
[1745808844255,0.71179204,1776.5,1776.1,0.94827269]
[1745808846417,1.4157575,1776.4,1776.1,0.14997269]
[1745808850249,0.3153852,1776.3,1776.1,0.14997269]
[1745808850957,1.4157575,1776.4,1776.1,0.14997269]
[1745808851851,0.6443575,1776.4,1776.1,0.14997269]
[1745808852061,9.63296875,1776.6,1776.1,0.14997269]
[1745808852356,5.98861125,1776.6,1776.2,0.8053]
[1745808852731,5.98861125,1776.6,1776.3,0.13238014]
[1745808853333,5.98861125,1776.6,1776.4,0.7799]
[1745808853541,0.00624876,1776.6,1776.4,0.7799]
[1745808853852,0.00624876,1776.6,1776.5,0.13238014]
[1745808854239,0.00624876,1776.6,1776.4,0.7799]
[1745808854443,0.00624876,1776.6,1776.5,0.13238014]
[1745808854748,0.00624876,1776.6,1776.4,0.7799]
[1745808855060,0.00624876,1776.6,1776.5,0.13238014]
[1745808855419,0.00624876,1776.6,1776.4,0.7799]
[1745808855617,0.00624876,1776.6,1776.5,0.13238014]
[1745808855820,0.00624876,1776.6,1776.4,0.7799]
[1745808856032,0.00624876,1776.6,1776.5,0.13238014]
[1745808856234,0.00624876,1776.6,1776.4,0.7799]
[1745808856456,0.00624876,1776.6,1776.5,0.13238014]
[1745808856854,0.00624876,1776.6,1776.4,0.7799]
[1745808857226,0.00624876,1776.6,1776.5,0.13238014]
[1745808857556,0.00624876,1776.6,1776.4,0.7799]
[1745808857957,0.00624876,1776.6,1776.5,0.13238014]
[1745808858454,0.00624876,1776.6,1776.4,0.7799]
[1745808858848,0.00624876,1776.6,1776.5,0.13238014]
[1745808859049,0.00624876,1776.6,1776.4,0.7799]
[1745808859248,0.00624876,1776.6,1776.5,0.13238014]
[1745808859445,0.00624876,1776.6,1776.4,0.7799]
[1745808859654,0.00624876,1776.6,1776.5,0.13238014]
[1745808860124,0.00624876,1776.6,1776.4,0.7799]
[1745808860332,0.32168477,1776.6,1776.5,0.13238014]
[1745808861067,0.32168477,1776.6,1776.3,0.8207]
[1745808861270,0.31543601,1776.5,1776.3,0.8207]
[1745808861967,0.00624876,1776.6,1776.3,0.8207]
[1745808863645,0.3163219,1776.5,1776.3,0.8207]
[1745808865228,0.00624876,1776.6,1776.3,0.8207]
[1745808867042,0.00624876,1776.6,1776.3,5.7237]
[1745808867243,0.00624876,1776.6,1776.4,0.57237]
[1745808868059,0.32254227,1776.6,1776.4,0.57237]
[1745808868956,0.00624876,1776.6,1776.4,0.57237]
[1745808870675,0.00624876,1776.6,1776.5,0.7706]
[1745808872281,0.00624876,1776.6,1776.5,0.89886528]
[1745808877251,0.00624876,1776.6,1776.5,1.34598881]
[1745808879109,0.00624876,1776.6,1776.5,5.08685605]
[1745808881100,0.00624876,1776.6,1776.5,1.34598881]
[1745808881415,0.00624876,1776.6,1776.5,0.89886528]
[1745808881611,0.00624876,1776.6,1776.5,0.12826528]
[1745808882614,0.32254227,1776.6,1776.5,0.12826528]
[1745808894434,0.00624876,1776.6,1776.5,0.12826528]
[1745808896129,0.32257232,1776.6,1776.5,0.12826528]
[1745808897935,1.15443622,1776.6,1776.5,0.12826528]
[1745808898111,1.08407232,1776.6,1776.2,3.74086724]
[1745808898309,0.6443575,1776.5,1776.2,3.74086724]
[1745808898701,0.31632356,1776.4,1776.2,3.74086724]
[1745808899423,0.7732,1776.3,1776.2,3.74086724]
[1745808899936,1.08952356,1776.3,1776.2,3.74086724]
[1745808900801,1.08952356,1776.3,1776.0,4.899]
[1745808900998,0.31632356,1776.3,1776.1,0.4899]
[1745808901299,0.31632356,1776.3,1776.0,4.899]
[1745808902433,0.31632356,1776.3,1776.1,0.11679735]
[1745808903635,0.96068106,1776.3,1776.1,0.11679735]
[1745808904719,0.31632356,1776.3,1776.1,0.11679735]
[1745808905804,1.11512356,1776.4,1776.1,0.11679735]
[1745808906619,0.31632356,1776.3,1776.1,0.11679735]
[1745808909042,1.11512356,1776.4,1776.1,0.11679735]
[1745808909854,0.8174,1776.2,1776.1,0.11679735]
[1745808910005,0.76953676,1776.2,1776.1,0.11679735]
[1745808910334,0.8174,1776.1,1775.7,3.74086724]
[1745808910522,0.6443575,1775.8,1775.7,3.74086724]
[1745808910727,1.4617575,1775.8,1775.7,3.74086724]
[1745808910907,1.77808106,1775.8,1775.7,3.74086724]
[1745808912344,1.4617575,1775.8,1775.7,3.74086724]
[1745808913213,1.4617575,1775.8,1775.5,4.897]
[1745808916639,0.41754756,1775.9,1775.5,6.1832]
[1745808916842,1.4544575,1776.0,1775.5,6.1832]
[1745808917246,1.4544575,1776.0,1775.6,0.11185445]
[1745808918535,0.31524539,1775.9,1775.6,0.11185445]
[1745808919050,0.6443575,1775.8,1775.6,0.11185445]
[1745808920124,0.82279513,1775.7,1775.6,0.11185445]
[1745808920346,1.19911526,1775.7,1775.2,4.898]
[1745808920516,0.6443575,1775.6,1775.2,4.898]
[1745808921663,0.6443575,1775.4,1775.0,16.914]
[1745808921838,0.6443575,1775.2,1775.1,4.899]
[1745808922014,0.6443575,1775.4,1775.1,4.899]
[1745808922324,1.40531864,1775.4,1775.1,4.899]
[1745808923247,1.09007325,1775.4,1775.1,4.899]
[1745808924655,0.8128,1775.5,1775.1,5.6989]
[1745808925147,1.12772885,1775.5,1775.1,5.6989]
[1745808925516,0.6443575,1775.4,1775.1,5.6989]
[1745808929950,1.06756612,1775.4,1775.1,4.899]
[1745808930454,1.38271754,1775.4,1775.1,4.899]
[1745808931324,1.06756612,1775.4,1775.1,4.899]
[1745808932262,1.06756612,1775.4,1775.2,0.10926471]
[1745808932755,0.6443575,1775.4,1775.2,0.10926471]
[1745808933123,0.95954876,1775.4,1774.9,0.7597]
[1745808933318,0.73044075,1775.4,1775.3,0.10926471]
[1745808933537,0.8236,1775.3,1774.8,5.7043]
[1745808933744,1.13879126,1775.3,1774.8,5.7043]
[1745808933930,1.13879126,1775.3,1774.9,0.10926471]
[1745808934130,4.13879126,1775.3,1774.8,4.9]
[1745808934532,4.13879126,1775.3,1774.9,0.10926471]
[1745808934735,0.41387913,1775.2,1774.9,0.10926471]
[1745808935066,0.6443575,1775.1,1774.8,4.9]
[1745808935239,0.6443575,1775.2,1775.0,0.10926471]
[1745808935452,0.95954876,1775.2,1774.9,0.7977]
[1745808935769,0.31519126,1775.2,1774.9,0.7977]
[1745808936068,0.31519126,1775.2,1775.0,0.10926471]
[1745808936262,1.13879126,1775.3,1775.0,0.10926471]
[1745808936467,1.69593549,1775.3,1775.0,0.10926471]
[1745808937299,1.38074423,1775.3,1775.0,0.10926471]
[1745808937965,0.55714423,1775.3,1775.0,0.10926471]
[1745808938171,2.22965107,1775.4,1775.0,0.10926471]
[1745808938667,0.31566384,1775.3,1775.0,0.10926471]
[1745808944984,0.31566384,1775.2,1775.0,0.10926471]
[1745808945773,0.96002134,1775.2,1775.0,0.10926471]
[1745808946074,0.31566384,1775.1,1775.0,0.10926471]
[1745808948884,0.38609065,1775.1,1775.0,0.10926471]
[1745808949093,1.10416384,1775.1,1775.0,0.10926471]
[1745808949406,1.10416384,1775.1,1774.4,5.7018]
[1745808949612,0.6443575,1775.0,1774.4,4.897]
[1745808949763,0.6443575,1775.0,1774.5,0.91184303]
[1745808950178,0.31673501,1774.9,1774.5,0.91184303]
[1745808950970,0.31673501,1775.1,1774.5,0.91184303]
[1745808951887,0.31673501,1775.0,1774.5,0.91184303]
[1745808952576,0.31673501,1774.9,1774.5,0.91184303]
[1745808953460,0.71478064,1775.2,1774.5,1.49272733]
[1745808953664,0.6443575,1775.2,1774.6,0.8107]
[1745808953896,0.6443575,1775.2,1774.7,0.10786506]
[1745808954095,0.31676896,1775.1,1774.7,0.10786506]
[1745808954866,0.31676896,1775.0,1774.7,0.10786506]
[1745808955496,0.31676896,1774.9,1774.7,0.10786506]
[1745808956910,0.31676896,1775.1,1774.7,0.10786506]
[1745808957495,0.31676896,1775.0,1774.7,0.10786506]
[1745808958194,0.31676896,1774.9,1774.7,0.10786506]
[1745808958795,0.6443575,1775.2,1774.7,0.10786506]
[1745808959699,0.31682129,1775.1,1774.7,0.10786506]
[1745808959902,1.4294575,1775.0,1774.7,0.10786506]
[1745808960721,0.6443575,1774.8,1774.4,9.39236724]
[1745808961509,0.31682129,1774.7,1774.4,9.39236724]
[1745808962578,0.31682129,1774.6,1774.4,9.39236724]
[1745808963302,0.31682129,1774.7,1774.4,9.39236724]
[1745808963980,0.31682129,1774.7,1774.4,5.6515]
[1745808964368,0.31682129,1774.6,1774.4,5.6515]
[1745808964768,7.894,1775.1,1775.0,2.11747659]
[1745808965003,15.90835624,1775.1,1775.0,2.11747659]
[1745808966606,15.26399874,1775.1,1775.0,2.11747659]
[1745808968004,16.08299874,1775.1,1775.0,2.11747659]
[1745808975520,18.53196974,1775.1,1775.0,2.11747659]
[1745808977617,18.53196974,1775.1,1775.0,0.97081638]
[1745808978885,18.53196974,1775.1,1774.4,5.6515]
[1745808978886,0.7541,1775.0,1774.4,5.6515]
[1745808979091,1.2244855,1774.5,1774.3,0.7995]
[1745808979414,1.2244855,1774.4,1774.2,5.6945]
[1745808979592,0.64313598,1774.5,1774.2,5.6945]
[1745808980333,0.64313598,1774.3,1774.2,0.7995]
[1745808980624,3.64313598,1774.3,1774.1,3.74086724]
[1745808980797,0.43477748,1774.2,1774.1,3.74086724]
[1745808980994,0.3643136,1774.2,1774.1,3.74086724]
[1745808981195,0.3643136,1774.2,1773.9,3.74086724]
[1745808981394,0.64313598,1774.1,1773.9,3.74086724]
[1745808985223,0.64313598,1774.1,1773.8,0.8215]
[1745808986924,0.42808169,1774.3,1773.9,0.755]
[1745808987134,1.43253598,1774.5,1773.9,0.755]
[1745808987303,0.64313598,1774.5,1773.9,0.755]
[1745808987495,3.64313598,1774.5,1773.9,0.755]
[1745808987694,0.64313598,1774.5,1773.9,0.755]
[1745808988003,3.64313598,1774.5,1773.9,0.755]
[1745808989031,4.06157619,1774.5,1773.9,0.755]
[1745808989216,0.64313598,1774.3,1773.9,0.755]